[Event "Kvibergspelen September 2019"]
[Site "Prioritet Serneke Arena, Krutvagen 2, Gothenburg, Sweden"]
[Date "2019.09.27"]
[Round "1.11"]
[White "Akesson, Ralf"]
[Black "Strom-Engdahl, Alexander"]
[Result "1-0"]
[TimeControl "15 minutes + 5 seconds per move from move one (Round 1 - 4) / 90 minutes + 30 seconds per move from move one (Round 5 - 8)"]
[WhiteTitle "GM"]
[WhiteFideId "1700120"]
[BlackFideId "1741586"]
[WhiteElo "2367"]
[BlackElo "1921"]

1. Nf3 {[%clk 00:15:07]} {[%emt 00:00:04]} Nf6 {[%clk 00:14:33]} {[%emt
00:00:35]} 2. c4 {[%clk 00:15:08]} {[%emt 00:00:03]} e6 {[%clk 00:14:33]}
{[%emt 00:00:05]} 3. Nc3 {[%clk 00:15:08]} {[%emt 00:00:06]} d5 {[%clk
00:14:36]} {[%emt 00:00:02]} 4. d4 {[%clk 00:15:11]} {[%emt 00:00:03]} Bb4
{[%clk 00:14:35]} {[%emt 00:00:05]} 5. cxd5 {[%clk 00:14:34]} {[%emt 00:00:42]}
exd5 {[%clk 00:14:27]} {[%emt 00:00:13]} 6. Bg5 {[%clk 00:14:37]} {[%emt
00:00:02]} O-O {[%clk 00:14:23]} {[%emt 00:00:09]} 7. e3 {[%clk 00:14:38]}
{[%emt 00:00:04]} c6 {[%clk 00:12:35]} {[%emt 00:01:53]} 8. Bd3 {[%clk
00:14:37]} {[%emt 00:00:06]} Qa5 {[%clk 00:11:30]} {[%emt 00:01:10]} 9. O-O
{[%clk 00:14:18]} {[%emt 00:00:24]} Nbd7 {[%clk 00:09:47]} {[%emt 00:01:48]} 10.
Qc2 {[%clk 00:14:01]} {[%emt 00:00:22]} Re8 {[%clk 00:09:43]} {[%emt 00:00:10]}
11. Bh4 {[%clk 00:13:25]} {[%emt 00:00:41]} Bxc3 {[%clk 00:07:58]} {[%emt
00:01:51]} 12. bxc3 {[%clk 00:13:24]} {[%emt 00:00:05]} Ne4 {[%clk 00:07:59]}
{[%emt 00:00:04]} 13. c4 {[%clk 00:13:21]} {[%emt 00:00:09]} Ndf6 {[%clk
00:07:53]} {[%emt 00:00:11]} 14. cxd5 {[%clk 00:12:33]} {[%emt 00:00:53]} cxd5
{[%clk 00:07:56]} {[%emt 00:00:03]} 15. Rfc1 {[%clk 00:12:36]} {[%emt
00:00:02]} Be6 {[%clk 00:07:47]} {[%emt 00:00:13]} 16. Qc7 {[%clk 00:12:09]}
{[%emt 00:00:32]} Qxc7 {[%clk 00:05:44]} {[%emt 00:02:08]} 17. Rxc7 {[%clk
00:12:10]} {[%emt 00:00:02]} b6 {[%clk 00:05:39]} {[%emt 00:00:12]} 18. Ba6
{[%clk 00:11:59]} {[%emt 00:00:15]} Kf8 {[%clk 00:05:30]} {[%emt 00:00:15]} 19.
Rac1 {[%clk 00:11:55]} {[%emt 00:00:09]} Re7 {[%clk 00:05:26]} {[%emt
00:00:08]} 20. R7c2 {[%clk 00:11:35]} {[%emt 00:00:25]} Bf5 {[%clk 00:04:59]}
{[%emt 00:00:33]} 21. Rb2 {[%clk 00:10:11]} {[%emt 00:01:29]} Ree8 {[%clk
00:04:34]} {[%emt 00:00:30]} 22. Ne5 {[%clk 00:10:06]} {[%emt 00:00:10]} Bc8
{[%clk 00:04:06]} {[%emt 00:00:33]} 23. Bd3 {[%clk 00:09:40]} {[%emt 00:00:31]}
g5 {[%clk 00:03:41]} {[%emt 00:00:31]} 24. Bg3 {[%clk 00:09:32]} {[%emt
00:00:12]} Nxg3 {[%clk 00:03:41]} {[%emt 00:00:04]} 25. hxg3 {[%clk 00:09:29]}
{[%emt 00:00:09]} Be6 {[%clk 00:03:44]} {[%emt 00:00:03]} 26. Ba6 {[%clk
00:09:26]} {[%emt 00:00:07]} Bc8 {[%clk 00:03:46]} {[%emt 00:00:03]} 27. Bb5
{[%clk 00:09:30]} {[%emt 00:00:02]} Rd8 {[%clk 00:03:29]} {[%emt 00:00:22]} 28.
Rc7 {[%clk 00:08:56]} {[%emt 00:00:38]} Be6 {[%clk 00:03:27]} {[%emt 00:00:07]}
29. Ba6 {[%clk 00:08:48]} {[%emt 00:00:14]} Nd7 {[%clk 00:02:44]} {[%emt
00:00:48]} 30. Nc6 {[%clk 00:08:27]} {[%emt 00:00:25]} Re8 {[%clk 00:02:47]}
{[%emt 00:00:03]} 31. Nxa7 {[%clk 00:08:13]} {[%emt 00:00:19]} Reb8 {[%clk
00:01:26]} {[%emt 00:01:26]} 32. Bb5 {[%clk 00:07:46]} {[%emt 00:00:31]} Nf6
{[%clk 00:01:23]} {[%emt 00:00:08]} 33. Rbc2 {[%clk 00:06:11]} {[%emt
00:01:40]} Ne8 {[%clk 00:01:16]} {[%emt 00:00:12]} 34. Bxe8 {[%clk 00:06:14]}
{[%emt 00:00:02]} Kxe8 {[%clk 00:01:20]} {[%emt 00:00:02]} 35. Nb5 {[%clk
00:05:45]} {[%emt 00:00:33]} Kf8 {[%clk 00:01:19]} {[%emt 00:00:06]} 36. f3
{[%clk 00:05:30]} {[%emt 00:00:21]} Ra5 {[%clk 00:01:20]} {[%emt 00:00:04]} 37.
Nc3 {[%clk 00:05:14]} {[%emt 00:00:20]} Ke8 {[%clk 00:01:10]} {[%emt 00:00:16]}
38. g4 {[%clk 00:04:49]} {[%emt 00:00:30]} Kd8 {[%clk 00:00:57]} {[%emt
00:00:17]} 39. Rc6 {[%clk 00:04:39]} {[%emt 00:00:15]} Kd7 {[%clk 00:01:00]}
{[%emt 00:00:02]} 40. Ne2 {[%clk 00:04:31]} {[%emt 00:00:13]} Rxa2 {[%clk
00:00:47]} {[%emt 00:00:19]} 41. Rc7+ {[%clk 00:04:34]} {[%emt 00:00:02]} Kd8
{[%clk 00:00:50]} {[%emt 00:00:02]} 42. Rxa2 {[%clk 00:03:57]} {[%emt
00:00:42]} Kxc7 {[%clk 00:00:54]} {[%emt 00:00:01]} 43. Nc1 {[%clk 00:04:01]}
b5 {[%clk 00:00:48]} {[%emt 00:00:11]} 44. Nb3 {[%clk 00:04:03]} {[%emt
00:00:03]} f5 {[%clk 00:00:40]} {[%emt 00:00:13]} 45. gxf5 {[%clk 00:04:04]}
{[%emt 00:00:04]} Bxf5 {[%clk 00:00:44]} {[%emt 00:00:01]} 46. Kf2 {[%clk
00:04:02]} {[%emt 00:00:07]} Kb6 {[%clk 00:00:41]} {[%emt 00:00:08]} 47. Nc5
{[%clk 00:04:03]} {[%emt 00:00:04]} b4 {[%clk 00:00:34]} {[%emt 00:00:13]} 48.
g4 {[%clk 00:04:00]} {[%emt 00:00:07]} Bc8 {[%clk 00:00:34]} {[%emt 00:00:05]}
49. Ke2 {[%clk 00:03:59]} {[%emt 00:00:07]} Kb5 {[%clk 00:00:37]} {[%emt
00:00:02]} 50. Kd3 {[%clk 00:04:02]} {[%emt 00:00:02]} Bb7 {[%clk 00:00:30]}
{[%emt 00:00:12]} 51. Ra7 {[%clk 00:03:50]} {[%emt 00:00:17]} Kb6 {[%clk
00:00:28]} {[%emt 00:00:08]} 52. Ra1 {[%clk 00:03:52]} {[%emt 00:00:02]} Kb5
{[%clk 00:00:32]} {[%emt 00:00:01]} 53. Rh1 {[%clk 00:03:50]} {[%emt 00:00:07]}
Ba6 {[%clk 00:00:23]} {[%emt 00:00:15]} 54. Rxh7 {[%clk 00:03:31]} {[%emt
00:00:23]} Ka5+ {[%clk 00:00:18]} {[%emt 00:00:10]} 55. Kc2 {[%clk 00:03:11]}
{[%emt 00:00:25]} Be2 {[%clk 00:00:22]} {[%emt 00:00:01]} 56. Rf7 {[%clk
00:03:06]} {[%emt 00:00:10]} Kb5 {[%clk 00:00:21]} {[%emt 00:00:06]} 57. Kd2
{[%clk 00:03:00]} {[%emt 00:00:10]} Bf1 {[%clk 00:00:19]} {[%emt 00:00:07]} 58.
f4 {[%clk 00:02:43]} {[%emt 00:00:22]} gxf4 {[%clk 00:00:19]} {[%emt 00:00:06]}
59. Rxf4 {[%clk 00:02:38]} {[%emt 00:00:10]} Bg2 {[%clk 00:00:21]} {[%emt
00:00:02]} 60. g5 {[%clk 00:02:40]} {[%emt 00:00:03]} Kc4 {[%clk 00:00:24]}
{[%emt 00:00:03]} 61. Kc2 {[%clk 00:02:30]} {[%emt 00:00:15]} Be4+ {[%clk
00:00:13]} {[%emt 00:00:16]} 62. Nxe4 {[%clk 00:02:24]} {[%emt 00:00:11]} dxe4
{[%clk 00:00:17]} {[%emt 00:00:01]} 63. Rxe4 {[%clk 00:02:27]} {[%emt
00:00:02]} b3+ {[%clk 00:00:21]} {[%emt 00:00:01]} 64. Kb2 {[%clk 00:02:31]}
Ra8 {[%clk 00:00:23]} {[%emt 00:00:03]} 65. d5+ {[%clk 00:02:24]} {[%emt
00:00:12]} Kxd5 {[%clk 00:00:25]} {[%emt 00:00:03]} 66. Rd4+ {[%clk 00:02:28]}
Ke5 {[%clk 00:00:28]} {[%emt 00:00:02]} 67. Kxb3 {[%clk 00:02:31]} {[%emt
00:00:02]} Rg8 {[%clk 00:00:30]} {[%emt 00:00:02]} 68. Rb4 {[%clk 00:02:24]}
{[%emt 00:00:13]} Rxg5 {[%clk 00:00:18]} {[%emt 00:00:17]} 69. Rb5+ {[%clk
00:02:27]} {[%emt 00:00:02]} Kf6 {[%clk 00:00:22]} 70. Rxg5 {[%clk 00:02:28]}
{[%emt 00:00:04]} Kxg5 {[%clk 00:00:26]} {[%emt 00:00:01]} 71. Kc4 {[%clk
00:02:32]} Kf6 {[%clk 00:00:30]} 72. Kd5 {[%clk 00:02:35]} {[%emt 00:00:02]}
Kf7 {[%clk 00:00:32]} {[%emt 00:00:03]} 73. Kd6 {[%clk 00:02:38]} {[%emt
00:00:02]} Ke8 {[%clk 00:00:36]} {[%emt 00:00:01]} 74. e4 {[%clk 00:02:38]}
{[%emt 00:00:05]} Kd8 {[%clk 00:00:30]} {[%emt 00:00:11]} 75. Ke6 {[%clk
00:02:39]} {[%emt 00:00:04]} Kc7 {[%clk 00:00:29]} {[%emt 00:00:07]} 76. e5
{[%clk 00:02:40]} {[%emt 00:00:04]} Kd8 {[%clk 00:00:30]} {[%emt 00:00:04]} 77.
Kf7 {[%clk 00:02:43]} {[%emt 00:00:01]} 1-0

[Event "Kvibergspelen September 2019"]
[Site "Prioritet Serneke Arena, Krutvagen 2, Gothenburg, Sweden"]
[Date "2019.09.27"]
[Round "1.12"]
[White "Salholm, Soren"]
[Black "Bellon Lopez, Juan"]
[Result "0-1"]
[TimeControl "15 minutes + 5 seconds per move from move one (Round 1 - 4) / 90 minutes + 30 seconds per move from move one (Round 5 - 8)"]
[BlackTitle "GM"]
[WhiteFideId "1722824"]
[BlackFideId "2200031"]
[WhiteElo "1912"]
[BlackElo "2334"]

1. e4 {[%clk 00:15:03]} {[%emt 00:00:06]} c5 {[%clk 00:15:09]} {[%emt
00:00:02]} 2. Nf3 {[%clk 00:15:06]} {[%emt 00:00:02]} e6 {[%clk 00:15:13]}
{[%emt 00:00:01]} 3. Bb5 {[%clk 00:15:02]} {[%emt 00:00:09]} a6 {[%clk
00:15:16]} {[%emt 00:00:03]} 4. Be2 {[%clk 00:15:00]} {[%emt 00:00:06]} Nc6
{[%clk 00:15:11]} {[%emt 00:00:10]} 5. O-O {[%clk 00:15:00]} {[%emt 00:00:05]}
Nf6 {[%clk 00:15:13]} {[%emt 00:00:04]} 6. d3 {[%clk 00:14:59]} {[%emt
00:00:06]} d5 {[%clk 00:15:00]} {[%emt 00:00:18]} 7. exd5 {[%clk 00:14:53]}
{[%emt 00:00:11]} Nxd5 {[%clk 00:15:03]} {[%emt 00:00:02]} 8. Re1 {[%clk
00:14:05]} {[%emt 00:00:53]} Bd6 {[%clk 00:15:02]} {[%emt 00:00:06]} 9. Bf1
{[%clk 00:13:42]} {[%emt 00:00:28]} O-O {[%clk 00:14:57]} {[%emt 00:00:09]} 10.
c3 {[%clk 00:12:25]} {[%emt 00:01:22]} b6 {[%clk 00:14:44]} {[%emt 00:00:18]}
11. Na3 {[%clk 00:11:56]} {[%emt 00:00:34]} Bb7 {[%clk 00:14:23]} {[%emt
00:00:26]} 12. Nc2 {[%clk 00:11:47]} {[%emt 00:00:14]} Qf6 {[%clk 00:13:51]}
{[%emt 00:00:36]} 13. d4 {[%clk 00:11:23]} {[%emt 00:00:29]} Rac8 {[%clk
00:13:35]} {[%emt 00:00:21]} 14. Ne3 {[%clk 00:10:59]} {[%emt 00:00:30]} Nf4
{[%clk 00:12:49]} {[%emt 00:00:51]} 15. Nc4 {[%clk 00:10:34]} {[%emt 00:00:30]}
Bc7 {[%clk 00:12:38]} {[%emt 00:00:15]} 16. g3 {[%clk 00:09:33]} {[%emt
00:01:07]} Nd5 {[%clk 00:11:20]} {[%emt 00:01:23]} 17. Bg2 {[%clk 00:09:23]}
{[%emt 00:00:15]} h6 {[%clk 00:11:14]} {[%emt 00:00:12]} 18. a4 {[%clk
00:08:56]} {[%emt 00:00:32]} cxd4 {[%clk 00:11:07]} {[%emt 00:00:13]} 19. Nxd4
{[%clk 00:06:23]} {[%emt 00:02:38]} Nxd4 {[%clk 00:11:08]} {[%emt 00:00:04]} 20.
cxd4 {[%clk 00:06:26]} {[%emt 00:00:02]} Rfd8 {[%clk 00:11:10]} {[%emt
00:00:03]} 21. Qb3 {[%clk 00:05:56]} {[%emt 00:00:34]} Qxd4 {[%clk 00:10:35]}
{[%emt 00:00:39]} 22. Be3 {[%clk 00:05:51]} {[%emt 00:00:10]} Qf6 {[%clk
00:10:22]} {[%emt 00:00:18]} 23. Nxb6 {[%clk 00:05:35]} {[%emt 00:00:22]} Rb8
{[%clk 00:08:50]} {[%emt 00:01:36]} 24. a5 {[%clk 00:05:25]} {[%emt 00:00:15]}
Nxe3 {[%clk 00:08:51]} {[%emt 00:00:05]} 25. Rxe3 {[%clk 00:05:09]} {[%emt
00:00:20]} Bxg2 {[%clk 00:08:54]} {[%emt 00:00:02]} 26. Kxg2 {[%clk 00:05:12]}
{[%emt 00:00:03]} Qd4 {[%clk 00:08:41]} {[%emt 00:00:15]} 27. Qc3 {[%clk
00:03:23]} {[%emt 00:01:57]} Bxb6 {[%clk 00:08:30]} {[%emt 00:00:16]} 28. axb6
{[%clk 00:03:25]} {[%emt 00:00:04]} Rxb6 {[%clk 00:08:07]} {[%emt 00:00:28]} 29.
Qc7 {[%clk 00:02:57]} {[%emt 00:00:32]} Qd5+ {[%clk 00:07:33]} {[%emt
00:00:38]} 30. Rf3 {[%clk 00:02:49]} {[%emt 00:00:14]} Rb7 {[%clk 00:07:37]}
{[%emt 00:00:01]} 31. Qc3 {[%clk 00:02:41]} {[%emt 00:00:13]} Rdb8 {[%clk
00:07:16]} {[%emt 00:00:26]} 32. Ra3 {[%clk 00:00:33]} {[%emt 00:02:13]} Rxb2
{[%clk 00:07:11]} {[%emt 00:00:10]} 33. Qd3 {[%clk 00:00:34]} {[%emt 00:00:04]}
Qxd3 {[%clk 00:06:21]} {[%emt 00:00:56]} 34. Rfxd3 {[%clk 00:00:36]} {[%emt
00:00:03]} R2b6 {[%clk 00:06:09]} {[%emt 00:00:16]} 35. Rd7 {[%clk 00:00:38]}
{[%emt 00:00:04]} Ra8 {[%clk 00:06:06]} {[%emt 00:00:07]} 36. Ra5 {[%clk
00:00:35]} {[%emt 00:00:09]} Rb5 {[%clk 00:05:53]} {[%emt 00:00:19]} 37. Rxb5
{[%clk 00:00:21]} {[%emt 00:00:19]} axb5 {[%clk 00:05:57]} {[%emt 00:00:01]} 38.
Rb7 {[%clk 00:00:25]} Ra5 {[%clk 00:06:01]} 39. Rb8+ {[%clk 00:00:24]} {[%emt
00:00:05]} Kh7 {[%clk 00:06:05]} {[%emt 00:00:01]} 40. Kf3 {[%clk 00:00:24]}
{[%emt 00:00:05]} Kg6 {[%clk 00:06:09]} {[%emt 00:00:02]} 41. Rb7 {[%clk
00:00:25]} {[%emt 00:00:04]} Ra3+ {[%clk 00:06:12]} {[%emt 00:00:02]} 42. Ke4
{[%clk 00:00:27]} {[%emt 00:00:02]} Rb3 {[%clk 00:06:16]} {[%emt 00:00:02]} 43.
f4 {[%clk 00:00:27]} {[%emt 00:00:05]} h5 {[%clk 00:06:18]} {[%emt 00:00:03]}
44. Rb6 {[%clk 00:00:24]} {[%emt 00:00:08]} Kf6 {[%emt 00:00:26]} 45. Kd4
{[%emt 00:00:04]} 0-1

[Event "Kvibergspelen September 2019"]
[Site "Prioritet Serneke Arena, Krutvagen 2, Gothenburg, Sweden"]
[Date "2019.09.27"]
[Round "1.14"]
[White "Bergre, Joachim"]
[Black "Sorensen, Hampus"]
[Result "1/2-1/2"]
[TimeControl "15 minutes + 5 seconds per move from move one (Round 1 - 4) / 90 minutes + 30 seconds per move from move one (Round 5 - 8)"]
[BlackTitle "FM"]
[WhiteFideId "1704893"]
[BlackFideId "8703884"]
[WhiteElo "1909"]
[BlackElo "2319"]

1. Nf3 {[%clk 00:15:08]} {[%emt 00:00:01]} d5 {[%clk 00:15:07]} {[%emt
00:00:03]} 2. c4 {[%clk 00:15:03]} {[%emt 00:00:11]} d4 {[%clk 00:15:05]}
{[%emt 00:00:08]} 3. b4 {[%clk 00:14:58]} {[%emt 00:00:10]} Bg4 {[%clk
00:14:36]} {[%emt 00:00:34]} 4. a3 {[%clk 00:12:19]} {[%emt 00:02:44]} a5
{[%clk 00:13:44]} {[%emt 00:00:57]} 5. Bb2 {[%clk 00:12:16]} {[%emt 00:00:08]}
Bxf3 {[%clk 00:13:09]} {[%emt 00:00:40]} 6. gxf3 {[%clk 00:12:10]} {[%emt
00:00:10]} e5 {[%clk 00:13:04]} {[%emt 00:00:10]} 7. b5 {[%clk 00:11:25]}
{[%emt 00:00:50]} Nd7 {[%clk 00:12:48]} {[%emt 00:00:20]} 8. d3 {[%clk
00:10:10]} {[%emt 00:01:20]} Ne7 {[%clk 00:12:24]} {[%emt 00:00:29]} 9. f4
{[%clk 00:09:37]} {[%emt 00:00:39]} Ng6 {[%clk 00:11:21]} {[%emt 00:01:08]} 10.
fxe5 {[%clk 00:08:27]} {[%emt 00:01:14]} Ndxe5 {[%clk 00:11:05]} {[%emt
00:00:21]} 11. Nd2 {[%clk 00:06:55]} {[%emt 00:01:36]} Bc5 {[%clk 00:09:42]}
{[%emt 00:01:29]} 12. Ne4 {[%clk 00:06:24]} {[%emt 00:00:36]} Be7 {[%clk
00:08:58]} {[%emt 00:00:49]} 13. Ng3 {[%clk 00:04:45]} {[%emt 00:01:44]} O-O
{[%clk 00:08:26]} {[%emt 00:00:38]} 14. Bg2 {[%clk 00:04:39]} {[%emt 00:00:11]}
c6 {[%clk 00:08:17]} {[%emt 00:00:13]} 15. O-O {[%clk 00:04:16]} {[%emt
00:00:27]} Qd7 {[%clk 00:07:07]} {[%emt 00:01:16]} 16. a4 {[%clk 00:03:13]}
{[%emt 00:01:09]} Nf4 {[%clk 00:06:52]} {[%emt 00:00:19]} 17. e3 {[%clk
00:02:22]} {[%emt 00:00:56]} Nxg2 {[%clk 00:06:20]} {[%emt 00:00:37]} 18. Kxg2
{[%clk 00:02:26]} {[%emt 00:00:01]} Bc5 {[%clk 00:05:37]} {[%emt 00:00:48]} 19.
e4 {[%clk 00:02:18]} {[%emt 00:00:13]} Ng6 {[%clk 00:04:44]} {[%emt 00:00:59]}
20. f4 {[%clk 00:02:02]} {[%emt 00:00:21]} f5 {[%clk 00:04:25]} {[%emt
00:00:24]} 21. Nxf5 {[%clk 00:01:39]} {[%emt 00:00:28]} Rxf5 {[%clk 00:04:16]}
{[%emt 00:00:14]} 22. exf5 {[%clk 00:01:42]} {[%emt 00:00:01]} Qxf5 {[%clk
00:04:19]} {[%emt 00:00:02]} 23. Bc1 {[%clk 00:01:33]} {[%emt 00:00:14]} Bd6
{[%clk 00:03:22]} {[%emt 00:01:02]} 24. Ra2 {[%clk 00:01:33]} {[%emt 00:00:06]}
Bxf4 {[%clk 00:03:11]} {[%emt 00:00:16]} 25. Kh1 {[%clk 00:01:15]} {[%emt
00:00:22]} Rf8 {[%clk 00:01:54]} {[%emt 00:01:22]} 26. Raf2 {[%clk 00:01:09]}
{[%emt 00:00:11]} Qe5 {[%clk 00:01:36]} {[%emt 00:00:23]} 27. Bxf4 {[%clk
00:00:57]} {[%emt 00:00:17]} Nxf4 {[%clk 00:01:03]} {[%emt 00:00:38]} 28. Qg4
{[%clk 00:00:58]} {[%emt 00:00:04]} g5 {[%clk 00:00:42]} {[%emt 00:00:26]} 29.
Rg1 {[%clk 00:00:52]} {[%emt 00:00:11]} h6 {[%clk 00:00:42]} {[%emt 00:00:06]}
30. h4 {[%clk 00:00:55]} {[%emt 00:00:02]} Nxd3 {[%clk 00:00:24]} {[%emt
00:00:22]} 31. Rxf8+ {[%clk 00:00:52]} {[%emt 00:00:08]} Kxf8 {[%clk 00:00:29]}
32. Rf1+ {[%clk 00:00:53]} {[%emt 00:00:03]} Nf4 {[%clk 00:00:26]} {[%emt
00:00:07]} 33. hxg5 {[%clk 00:00:57]} {[%emt 00:00:03]} hxg5 {[%clk 00:00:29]}
{[%emt 00:00:01]} 34. Qc8+ {[%clk 00:00:56]} {[%emt 00:00:06]} Kg7 {[%clk
00:00:11]} {[%emt 00:00:23]} 35. Qxb7+ {[%clk 00:01:00]} {[%emt 00:00:02]} Kg8
{[%clk 00:00:11]} {[%emt 00:00:04]} 36. Qxc6 {[%clk 00:00:52]} {[%emt
00:00:13]} Qh8+ {[%clk 00:00:15]} {[%emt 00:00:01]} 37. Kg1 {[%clk 00:00:54]}
{[%emt 00:00:03]} Qh4 {[%clk 00:00:11]} {[%emt 00:00:09]} 38. Qe8+ {[%clk
00:00:49]} {[%emt 00:00:11]} Kg7 {[%clk 00:00:14]} 39. Qd7+ {[%clk 00:00:47]}
{[%emt 00:00:07]} Kg8 {[%clk 00:00:15]} {[%emt 00:00:04]} 40. Qd8+ {[%clk
00:00:49]} {[%emt 00:00:03]} Kg7 {[%clk 00:00:19]} 41. Qxd4+ {[%clk 00:00:53]}
{[%emt 00:00:02]} Kg8 {[%clk 00:00:20]} {[%emt 00:00:04]} 42. Rxf4 {[%clk
00:00:42]} {[%emt 00:00:16]} gxf4 {[%clk 00:00:23]} {[%emt 00:00:01]} 43. Qd5+
{[%clk 00:00:41]} {[%emt 00:00:07]} Kf8 {[%clk 00:00:20]} {[%emt 00:00:08]} 44.
Qf5+ {[%clk 00:00:37]} {[%emt 00:00:09]} Ke8 {[%clk 00:00:19]} {[%emt
00:00:06]} 45. Qe4+ {[%clk 00:00:36]} {[%emt 00:00:07]} Kf8 {[%clk 00:00:16]}
{[%emt 00:00:08]} 46. b6 {[%clk 00:00:39]} {[%emt 00:00:02]} Qg3+ {[%clk
00:00:17]} {[%emt 00:00:04]} 47. Kf1 {[%clk 00:00:43]} f3 {[%clk 00:00:11]}
{[%emt 00:00:11]} 48. Qf5+ {[%clk 00:00:35]} {[%emt 00:00:13]} Ke8 {[%clk
00:00:13]} {[%emt 00:00:03]} 49. Qe6+ {[%clk 00:00:37]} {[%emt 00:00:04]} Kf8
{[%clk 00:00:15]} {[%emt 00:00:02]} 50. Qf6+ {[%clk 00:00:41]} Ke8 {[%clk
00:00:19]} 51. Qe6+ {[%clk 00:00:46]} Kf8 {[%clk 00:00:24]} 52. Qf6+ {[%clk
00:00:48]} {[%emt 00:00:03]} Ke8 {[%clk 00:00:27]} {[%emt 00:00:02]} 1/2-1/2

[Event "Kvibergspelen September 2019"]
[Site "Prioritet Serneke Arena, Krutvagen 2, Gothenburg, Sweden"]
[Date "2019.09.27"]
[Round "1.15"]
[White "Ziegler, Ari"]
[Black "Andersson, Kjell-Ake"]
[Result "1-0"]
[TimeControl "15 minutes + 5 seconds per move from move one (Round 1 - 4) / 90 minutes + 30 seconds per move from move one (Round 5 - 8)"]
[WhiteTitle "IM"]
[WhiteFideId "1700987"]
[BlackFideId "1713825"]
[WhiteElo "2299"]
[BlackElo "1905"]

1. e4 {[%clk 00:15:09]} e6 {[%clk 00:15:04]} {[%emt 00:00:07]} 2. d4 {[%clk
00:15:12]} {[%emt 00:00:02]} d5 {[%clk 00:15:04]} {[%emt 00:00:05]} 3. Nd2
{[%clk 00:15:15]} {[%emt 00:00:02]} Nf6 {[%clk 00:14:34]} {[%emt 00:00:35]} 4.
e5 {[%clk 00:15:19]} {[%emt 00:00:02]} Nfd7 {[%clk 00:14:36]} {[%emt 00:00:02]}
5. Bd3 {[%clk 00:15:22]} {[%emt 00:00:02]} c5 {[%clk 00:14:17]} {[%emt
00:00:23]} 6. c3 {[%clk 00:15:25]} {[%emt 00:00:03]} Nc6 {[%clk 00:14:03]}
{[%emt 00:00:20]} 7. Ne2 {[%clk 00:15:27]} {[%emt 00:00:03]} Qb6 {[%clk
00:13:50]} {[%emt 00:00:18]} 8. Nf3 {[%clk 00:15:09]} {[%emt 00:00:22]} cxd4
{[%clk 00:13:49]} {[%emt 00:00:07]} 9. cxd4 {[%clk 00:15:11]} {[%emt 00:00:02]}
f6 {[%clk 00:13:49]} {[%emt 00:00:05]} 10. exf6 {[%clk 00:15:11]} {[%emt
00:00:05]} Nxf6 {[%clk 00:13:51]} {[%emt 00:00:03]} 11. O-O {[%clk 00:15:08]}
{[%emt 00:00:08]} Bd7 {[%clk 00:13:52]} {[%emt 00:00:05]} 12. b3 {[%clk
00:14:43]} {[%emt 00:00:30]} Bd6 {[%clk 00:13:40]} {[%emt 00:00:16]} 13. Bb2
{[%clk 00:14:01]} {[%emt 00:00:47]} O-O {[%clk 00:12:39]} {[%emt 00:01:06]} 14.
Rc1 {[%clk 00:13:59]} {[%emt 00:00:06]} Ng4 {[%clk 00:10:48]} {[%emt 00:01:57]}
15. Ng3 {[%clk 00:09:32]} {[%emt 00:04:33]} Bf4 {[%clk 00:05:57]} {[%emt
00:04:56]} 16. Rc5 {[%clk 00:08:18]} {[%emt 00:01:19]} Nb4 {[%clk 00:05:01]}
{[%emt 00:01:01]} 17. Bb1 {[%clk 00:08:03]} {[%emt 00:00:19]} Bb5 {[%clk
00:04:28]} {[%emt 00:00:39]} 18. Re1 {[%clk 00:07:24]} {[%emt 00:00:43]} Rae8
{[%clk 00:04:06]} {[%emt 00:00:29]} 19. a3 {[%clk 00:06:15]} {[%emt 00:01:13]}
Nc6 {[%clk 00:03:37]} {[%emt 00:00:34]} 20. b4 {[%clk 00:05:46]} {[%emt
00:00:34]} Nd8 {[%clk 00:03:13]} {[%emt 00:00:29]} 21. Qc2 {[%clk 00:04:59]}
{[%emt 00:00:51]} g6 {[%clk 00:02:51]} {[%emt 00:00:28]} 22. Bc1 {[%clk
00:04:23]} {[%emt 00:00:41]} Bxc1 {[%clk 00:02:24]} {[%emt 00:00:31]} 23. Qxc1
{[%clk 00:04:24]} {[%emt 00:00:04]} Nf7 {[%clk 00:01:51]} {[%emt 00:00:38]} 24.
h4 {[%clk 00:04:11]} {[%emt 00:00:18]} Bc4 {[%clk 00:00:46]} {[%emt 00:01:11]}
25. h5 {[%clk 00:04:08]} {[%emt 00:00:07]} e5 {[%clk 00:00:41]} {[%emt
00:00:11]} 26. hxg6 {[%clk 00:03:58]} {[%emt 00:00:14]} hxg6 {[%clk 00:00:45]}
{[%emt 00:00:01]} 27. Rxc4 {[%clk 00:02:38]} {[%emt 00:01:27]} dxc4 {[%clk
00:00:46]} {[%emt 00:00:03]} 28. Qxc4 {[%clk 00:02:41]} {[%emt 00:00:01]} Rc8
{[%clk 00:00:34]} {[%emt 00:00:17]} 29. Qb3 {[%clk 00:02:37]} {[%emt 00:00:10]}
Kg7 {[%clk 00:00:21]} {[%emt 00:00:18]} 30. Ne4 {[%clk 00:02:29]} {[%emt
00:00:12]} exd4 {[%clk 00:00:18]} {[%emt 00:00:09]} 31. Ba2 {[%clk 00:02:25]}
{[%emt 00:00:09]} Nfe5 {[%clk 00:00:13]} {[%emt 00:00:09]} 32. Nc5 {[%clk
00:02:17]} {[%emt 00:00:14]} 1-0